bitfinex/quotes_ETHUSD_20250629
["timestamp","ask_amount","ask_price","bid_price","bid_amount"]
[1751156059295,10.2048,2433.7,2433.6,0.2201788]
[1751156060497,13.08107891,2433.7,2433.6,0.2201788]
[1751156061804,10.2048,2433.7,2433.6,0.2201788]
[1751156067585,10.2048,2433.7,2433.6,1.65862605]
[1751156070609,10.2048,2433.7,2433.6,4.53502315]
[1751156070813,10.0,2433.7,2433.6,4.53502315]
[1751156070979,10.2048,2434.0,2433.7,2.87626625]
[1751156071186,10.2048,2434.0,2433.7,3.63787519]
[1751156073507,0.2048,2434.0,2433.7,3.63787519]
[1751156074393,0.2048,2434.0,2433.9,0.7647]
[1751156075978,0.2048,2434.0,2433.9,3.64074256]
[1751156076308,10.0,2434.3,2434.0,2.87589051]
[1751156076516,0.2048,2434.4,2434.1,3.68128178]
[1751156076822,4.55528358,2434.6,2434.2,2.87562036]
[1751156076823,1.8848,2434.6,2434.2,2.87562036]
[1751156076996,11.8848,2434.6,2434.2,2.87562036]
[1751156077206,11.8848,2434.6,2434.3,0.8055]
[1751156077517,1.8848,2434.6,2434.3,1.19409204]
[1751156077714,0.2048,2434.6,2434.3,1.19409204]
[1751156078024,12.87514032,2434.7,2434.3,1.39889204]
[1751156080094,2.87525938,2434.6,2434.3,1.39889204]
[1751156084328,10.0,2434.7,2434.3,1.39889204]
[1751156084329,12.87514684,2434.7,2434.3,1.39889204]
[1751156084503,12.87514684,2434.7,2434.4,0.42745622]
[1751156085433,2.87523347,2434.6,2434.4,0.42745622]
[1751156085606,2.87523347,2434.6,2434.3,1.0103]
[1751156088618,10.0,2434.5,2434.3,1.0103]
[1751156093432,12.87534755,2434.5,2434.3,1.0103]
[1751156093802,12.87527119,2434.6,2434.3,1.0103]
[1751156098730,2.87533986,2434.5,2434.3,1.0103]
[1751156098939,10.0,2434.6,2434.3,1.0103]
[1751156098940,12.87527397,2434.6,2434.3,1.0103]
[1751156100140,2.87535282,2434.5,2434.2,0.9911]
[1751156102635,13.08011863,2434.6,2434.2,0.9911]
[1751156102844,13.08011863,2434.6,2434.2,3.86677932]
[1751156103047,13.08011863,2434.6,2434.2,5.23191661]
[1751156103843,0.2048,2434.6,2434.2,5.23191661]
[1751156105150,10.0,2434.5,2434.2,5.23191661]
[1751156105746,10.0,2434.5,2434.2,2.35623729]
[1751156106250,10.0,2434.5,2434.2,0.9911]
[1751156109448,0.2048,2434.6,2434.2,3.8667619]
[1751156113470,0.2048,2434.6,2434.3,2.87556943]
[1751156118193,10.0,2434.9,2434.5,2.87529553]
[1751156118480,0.2048,2434.8,2434.5,2.87529553]
[1751156118863,0.2048,2434.8,2434.4,3.69739625]
[1751156119162,0.2048,2434.9,2434.6,0.822]
[1751156120248,3.07967456,2434.9,2434.6,0.822]
[1751156123081,0.2048,2434.9,2434.6,0.822]
[1751156126061,0.2048,2434.9,2434.6,3.69715729]
[1751156126266,0.2048,2434.9,2434.7,0.39019573]
[1751156127283,3.0796657,2434.9,2434.7,0.39019573]
[1751156127487,2.87497946,2434.8,2434.5,0.2048]
[1751156127990,13.88514647,2434.8,2434.4,1.90478923]
[1751156128193,1.0101,2434.8,2434.3,0.2048]
[1751156128490,0.2048,2434.4,2434.0,0.2048]
[1751156128669,13.68068373,2434.5,2433.9,2.87603489]
[1751156128866,3.08037408,2434.3,2433.9,1.31553462]
[1751156129670,3.08037408,2434.3,2433.9,4.19157412]
[1751156130782,3.08037408,2434.3,2433.9,1.31553462]
[1751156131292,3.08037408,2434.3,2433.9,4.19157521]
[1751156131470,0.2048,2434.3,2433.9,4.19157521]
[1751156132092,3.08037063,2434.3,2433.9,4.19157521]
[1751156134705,3.08037063,2434.3,2433.9,1.31553462]
[1751156135701,2.87570715,2434.2,2433.9,1.31553462]
[1751156135904,2.87570715,2434.2,2433.9,6.601]
[1751156136270,3.68310715,2434.2,2433.9,6.601]
[1751156136902,10.0,2434.1,2433.8,0.2048]
[1751156137084,13.08067772,2434.1,2433.7,6.8058]
[1751156139808,13.08067772,2434.1,2433.7,9.68204679]
[1751156142121,13.08067772,2434.1,2433.7,6.8058]
[1751156143609,13.08067772,2434.1,2433.7,9.68206676]
[1751156144509,0.2048,2434.1,2433.7,9.68206676]
[1751156144713,0.2048,2434.1,2433.7,11.20740555]
[1751156148316,0.2048,2434.1,2433.7,4.60640555]
[1751156148521,3.08067593,2434.1,2433.8,6.602]
[1751156149017,2.87593225,2434.0,2433.8,6.602]
[1751156149724,2.87616073,2433.8,2433.7,0.2048]
[1751156149927,13.84939951,2433.9,2433.6,6.8221788]
[1751156152731,10.9733,2433.9,2433.6,6.8221788]
[1751156152968,10.2048,2433.9,2433.6,9.69856204]
[1751156153097,10.2048,2433.9,2433.6,10.52716204]
[1751156155729,10.2048,2433.9,2433.6,7.6507788]
[1751156155934,10.2048,2433.9,2433.6,6.8221788]
[1751156159536,10.2048,2433.9,2433.7,2.87624382]
[1751156160039,10.2048,2433.9,2433.6,9.69851509]
[1751156165331,10.2048,2433.9,2433.6,11.48461086]
[1751156165852,10.2048,2433.9,2433.6,8.60827457]
[1751156167733,10.2048,2433.9,2433.6,6.8221788]
[1751156170478,10.2048,2433.9,2433.6,0.2201788]
[1751156170647,2.87627891,2433.7,2433.6,6.8221788]
[1751156170847,13.63280565,2433.8,2433.6,0.2201788]
[1751156171178,0.2048,2433.7,2433.6,0.2201788]
[1751156171350,13.08107891,2433.7,2433.6,0.2201788]
[1751156171746,19.50922121,2433.7,2433.6,0.2201788]
[1751156172148,26.11122121,2433.7,2433.6,0.2201788]
[1751156174686,20.43967891,2433.7,2433.6,0.2201788]
[1751156196607,3.08107891,2433.7,2433.6,0.2201788]
[1751156197000,13.08107891,2433.7,2433.6,0.2201788]
[1751156212847,13.89137891,2433.7,2433.6,0.2201788]
[1751156213650,19.68307891,2433.7,2433.6,0.2201788]
[1751156215546,13.08107891,2433.7,2433.6,0.2201788]
[1751156221654,13.86297891,2433.7,2433.6,0.2201788]
[1751156221856,20.46497891,2433.7,2433.6,0.2201788]
[1751156224131,13.86297891,2433.7,2433.6,0.2201788]
[1751156228882,13.08107891,2433.7,2433.6,0.2201788]
[1751156233212,21.98607149,2433.7,2433.6,0.2201788]
[1751156248612,19.55445292,2433.7,2433.6,0.2201788]
[1751156262532,19.68307891,2433.7,2433.6,0.2201788]
[1751156263729,13.08107891,2433.7,2433.6,0.2201788]
[1751156264438,19.68307891,2433.7,2433.6,0.2201788]
[1751156265132,13.08107891,2433.7,2433.6,0.2201788]
[1751156265334,19.68307891,2433.7,2433.6,0.2201788]
[1751156270640,19.68207891,2433.7,2433.6,0.2201788]
[1751156280315,3.08107891,2433.7,2433.6,0.2201788]
[1751156280719,13.08107891,2433.7,2433.6,0.2201788]
[1751156282220,18.75645292,2433.7,2433.6,0.2201788]
[1751156284257,25.35745292,2433.7,2433.6,0.2201788]
[1751156284662,19.68207891,2433.7,2433.6,0.2201788]
[1751156287066,13.08107891,2433.7,2433.6,1.0129788]
[1751156287967,10.2048,2433.7,2433.6,1.0129788]
[1751156289727,0.2048,2433.7,2433.6,1.0129788]
[1751156290335,0.2048,2433.7,2433.6,1.42250748]
[1751156293426,10.0,2433.9,2433.6,1.42250748]
[1751156293627,12.87605081,2433.9,2433.6,1.42250748]
[1751156294930,10.0,2433.9,2433.6,1.42250748]
[1751156295162,10.2048,2434.0,2433.7,0.8037]
[1751156295362,11.8828,2434.1,2433.8,0.8037]
[1751156295626,11.8828,2434.1,2433.9,0.38846855]
[1751156296169,14.75861366,2434.1,2433.9,0.38846855]
[1751156296463,14.75861366,2434.1,2433.8,0.8037]
[1751156296668,2.87593894,2434.0,2433.8,0.8037]
[1751156296968,2.87598039,2434.0,2433.8,0.8037]
[1751156297152,10.0,2434.3,2433.6,0.2201788]
[1751156297153,2.87616073,2433.8,2433.6,0.2201788]
[1751156299059,13.08089939,2433.9,2433.6,0.2201788]
[1751156299230,13.08089939,2433.9,2433.6,1.45348]
[1751156300483,2.8761644,2433.8,2433.6,0.2201788]
[1751156303681,2.87627891,2433.7,2433.6,0.2201788]
[1751156303886,2.87620716,2433.8,2433.6,0.2201788]
[1751156306078,2.87627891,2433.7,2433.6,0.2201788]
[1751156307084,12.87627891,2433.7,2433.6,0.2201788]
[1751156310201,13.64527891,2433.7,2433.6,0.2201788]
[1751156313998,20.24727891,2433.7,2433.6,0.2201788]
[1751156325704,19.47827891,2433.7,2433.6,0.2201788]
[1751156329788,21.15727891,2433.7,2433.6,0.2201788]
[1751156337412,21.93997891,2433.7,2433.6,0.2201788]
[1751156338612,27.61541231,2433.7,2433.6,0.2201788]
[1751156340722,21.93997891,2433.7,2433.6,0.2201788]
[1751156346152,15.33797891,2433.7,2433.6,0.2201788]
[1751156346359,21.15627891,2433.7,2433.6,0.2201788]
[1751156347928,21.15627891,2433.7,2433.6,0.1201788]
[1751156351552,21.53356264,2433.7,2433.6,0.1201788]
[1751156351759,21.15627891,2433.7,2433.6,0.1201788]
[1751156358380,21.97877891,2433.7,2433.6,0.1201788]
[1751156360556,27.65405175,2433.7,2433.6,0.1201788]
[1751156362388,12.87627891,2433.7,2433.6,0.1201788]
[1751156362687,21.15527891,2433.7,2433.6,0.1201788]
[1751156363586,14.55427891,2433.7,2433.6,0.1201788]
[1751156371765,20.22955175,2433.7,2433.6,0.1201788]
[1751156384884,14.55427891,2433.7,2433.6,0.1201788]
[1751156386208,20.22955175,2433.7,2433.6,0.1201788]
[1751156386413,27.60435175,2433.7,2433.6,0.1201788]
[1751156388008,27.60435175,2433.7,2433.1,0.8023]
[1751156388009,2.87686996,2433.2,2433.1,0.5754788]
[1751156388220,12.87686996,2433.2,2433.1,0.5754788]
[1751156393745,12.87710645,2433.0,2432.9,0.8013]
[1751156393923,2.87734297,2432.8,2432.7,1.0071]
[1751156395509,2.87715597,2433.0,2432.7,1.0071]
[1751156395510,2.87727528,2432.9,2432.7,1.0071]
[1751156396117,2.87734297,2432.8,2432.7,1.0071]
[1751156397944,12.87728939,2432.9,2432.7,1.0071]
[1751156398340,2.87734297,2432.8,2432.7,0.001]
[1751156398557,3.08214297,2432.8,2432.7,0.001]
[1751156398762,0.2048,2432.8,2432.7,0.001]
[1751156399837,10.0,2432.9,2432.8,0.7878]
[1751156401547,10.0,2432.9,2432.8,3.24406411]
[1751156401744,10.0,2432.9,2432.8,4.06186411]
[1751156402733,10.0,2432.9,2432.8,1.38932114]
[1751156403669,10.0,2432.9,2432.8,4.26666411]
[1751156404667,10.0,2432.9,2432.8,1.38932114]
[1751156405467,10.0,2432.9,2432.8,4.26666411]
[1751156406434,10.0,2432.9,2432.8,1.38932114]
[1751156407369,10.0,2432.9,2432.8,4.26666411]
[1751156411382,10.0,2432.9,2432.8,1.38932114]
[1751156412067,10.0,2432.9,2432.8,4.26666411]
[1751156416983,5.78125,2432.9,2432.8,4.26666411]
[1751156417200,3.63898354,2434.0,2433.5,2.87649059]
[1751156417395,4.86675558,2434.3,2433.5,0.7675]
[1751156417615,0.002,2434.1,2433.9,2.87595862]
[1751156417775,0.2068,2434.1,2434.0,2.8759244]
[1751156417980,0.002,2434.1,2434.0,4.1879711]
[1751156420071,0.002,2434.1,2434.0,6.602]
[1751156420273,0.002,2434.1,2433.6,3.64381711]
[1751156420274,2.8778703,2434.1,2433.6,3.64385062]
[1751156420471,0.2068,2434.1,2433.7,9.6850702]
[1751156422710,3.08262648,2434.1,2433.7,6.8088]
[1751156423303,0.2068,2434.1,2433.7,6.8088]
[1751156423505,0.2068,2434.1,2433.7,8.3094167]
[1751156424006,0.2068,2434.1,2433.7,11.18568281]
[1751156424511,0.2068,2434.1,2433.7,8.3094167]
[1751156425807,0.2068,2434.1,2433.7,1.7054167]
[1751156426020,3.67893375,2434.0,2433.7,0.2048]
[1751156426317,0.2048,2433.9,2433.7,6.602]
[1751156426816,3.08084676,2433.9,2433.7,6.602]
[1751156427331,0.2048,2433.9,2433.7,6.602]
[1751156428478,0.2048,2433.9,2433.7,8.54785119]
[1751156428688,0.2068,2434.1,2433.7,11.62883882]
[1751156431533,0.2068,2434.1,2433.8,2.87605039]
[1751156431851,0.2068,2434.1,2433.7,11.62890106]
[1751156432050,0.2068,2434.1,2433.9,2.87596793]
[1751156433922,0.2068,2434.1,2433.9,3.61469634]
[1751156435425,0.2068,2434.1,2433.9,0.73872841]
[1751156436154,0.2068,2434.1,2433.9,3.61476521]
[1751156436357,0.002,2434.1,2434.0,2.8759244]
[1751156436657,0.002,2434.1,2434.0,3.72979232]
[1751156438372,0.002,2434.1,2434.0,10.33279232]
[1751156440465,0.002,2434.1,2434.0,11.10739232]
[1751156442785,0.002,2434.1,2434.0,11.65739232]
[1751156443572,0.002,2434.1,2434.0,13.33639232]
[1751156450688,0.002,2434.1,2434.0,11.65739232]
[1751156450893,0.002,2434.1,2434.0,13.34339232]
[1751156454307,0.002,2434.1,2434.0,5.05439232]
[1751156454503,0.002,2434.1,2434.0,13.34339232]
[1751156454720,0.002,2434.1,2434.0,5.05439232]
[1751156454924,0.002,2434.1,2434.0,13.34239232]
[1751156457832,0.002,2434.1,2434.0,4.50439232]
[1751156458116,0.002,2434.1,2434.0,7.46286792]
[1751156458291,0.002,2434.1,2434.0,0.85386792]
[1751156458491,0.002,2434.1,2434.0,7.46286792]
[1751156458709,0.002,2434.1,2434.0,10.33879232]
[1751156461347,0.002,2434.1,2434.0,3.72979232]
[1751156461561,0.002,2434.1,2434.0,7.46286792]
[1751156461848,0.002,2434.1,2434.0,10.33879232]
[1751156464553,0.002,2434.1,2434.0,0.85386792]
[1751156464757,0.002,2434.1,2434.0,9.6887244]
[1751156465255,0.002,2434.1,2434.0,6.8128]
[1751156465450,0.002,2434.1,2434.0,0.2048]
[1751156465841,3.69340625,2434.1,2434.0,6.8128]
[1751156466044,3.69340625,2434.1,2434.0,0.2048]
[1751156466221,0.8176,2434.1,2434.0,6.608]
[1751156468869,0.002,2434.1,2434.0,6.608]
[1751156469182,0.002,2434.1,2434.0,7.57688327]
[1751156473995,0.002,2434.1,2434.0,10.45280767]
[1751156474168,0.002,2434.1,2434.0,11.23350767]
[1751156474354,0.002,2434.1,2434.0,11.43830767]
[1751156475554,0.002,2434.1,2434.0,11.98830767]
[1751156482210,0.002,2434.1,2434.0,20.09630573]
[1751156483328,0.002,2435.2,2435.1,2.87462527]
[1751156483594,0.002,2435.2,2435.1,12.38378003]
[1751156483764,0.002,2435.2,2435.1,12.58858003]
[1751156489195,0.002,2435.2,2435.1,4.28058003]
[1751156489584,0.002,2435.2,2435.1,12.58358003]
[1751156490101,0.002,2435.2,2435.1,3.73058003]
[1751156490410,0.002,2435.2,2435.1,12.03258003]
[1751156494305,0.002,2435.2,2435.1,12.03158003]
[1751156496125,0.002,2435.2,2435.1,12.80118003]
[1751156496824,0.002,2435.2,2435.1,13.35118003]
[1751156499495,0.002,2435.2,2435.1,23.35118003]
[1751156500590,0.002,2435.2,2435.1,31.45917809]
[1751156517331,0.002,2435.2,2435.1,36.10917809]
[1751156519025,0.002,2435.2,2435.1,48.61465009]
[1751156519760,0.002,2435.2,2435.1,45.62861809]
[1751156520460,0.002,2435.3,2435.2,13.42450722]
[1751156520677,0.002,2435.3,2435.2,18.23013146]
[1751156520835,0.002,2435.3,2435.2,18.40656088]
[1751156521265,0.002,2435.5,2435.3,14.21668919]
[1751156521570,0.002,2435.5,2435.3,28.93868725]
[1751156521739,0.002,2435.5,2435.3,29.11310943]
[1751156521940,0.002,2435.5,2435.3,33.33123367]
[1751156522154,0.002,2435.5,2435.3,40.29871367]
[1751156522533,0.002,2435.5,2435.4,44.21657116]
[1751156522733,0.002,2435.5,2435.4,37.64805116]
[1751156522964,0.002,2435.5,2435.4,37.82046618]
[1751156523160,0.002,2435.5,2435.4,46.48379042]
[1751156523466,0.002,2435.7,2435.4,46.48379042]
[1751156523467,0.002,2435.7,2435.6,30.76023814]
[1751156523670,0.002,2435.7,2435.6,57.2300362]
[1751156523966,0.002,2436.7,2435.6,57.2300362]
[1751156523967,0.002,2436.7,2435.7,14.21621714]
[1751156524260,0.002,2436.7,2435.7,23.80009763]
[1751156524467,0.002,2436.7,2435.7,23.96849149]
[1751156524831,0.002,2436.7,2435.8,14.21609916]
[1751156525087,0.002,2436.4,2435.8,22.32409722]
[1751156525367,0.002,2436.4,2435.8,22.49048417]
[1751156525528,0.002,2436.4,2435.8,26.50380841]
[1751156526169,0.002,2436.4,2435.8,26.81790892]
[1751156526373,0.002,2436.4,2436.1,4.19174526]
[1751156526542,0.002,2436.4,2436.1,28.91774332]
[1751156526734,0.002,2437.2,2437.1,3.42226621]
[1751156526933,0.002,2437.2,2437.1,30.47172719]
[1751156527185,0.002,2437.2,2437.1,23.13202913]
[1751156527353,0.002,2437.2,2437.1,23.29574824]
[1751156529692,0.002,2437.2,2437.1,31.4037463]
[1751156532769,0.002,2437.2,2437.1,61.4037463]
[1751156533051,0.002,2437.3,2437.2,44.19034836]
[1751156533256,0.002,2437.3,2437.2,48.2036726]
[1751156533651,0.002,2437.3,2437.2,48.4084726]
[1751156533847,0.002,2437.3,2437.2,32.3839956]
[1751156534048,0.002,2437.3,2437.2,32.1835966]
[1751156534450,0.002,2437.3,2437.2,23.8605966]
[1751156534652,0.002,2437.3,2437.2,29.9555456]
[1751156534864,0.002,2437.3,2437.2,30.0927856]
[1751156535068,0.002,2437.3,2437.2,26.7314726]
[1751156535385,0.002,2437.3,2437.2,29.9534956]
[1751156535685,0.002,2437.3,2437.2,38.06149366]
[1751156535852,0.8299,2438.5,2438.4,3.4207349]
[1751156536051,0.8299,2438.5,2438.4,11.7437349]
[1751156536360,0.8299,2438.5,2438.4,11.9485349]
[1751156536677,8.10799806,2438.9,2438.7,2.87032571]
[1751156537003,8.93789806,2438.9,2438.8,6.635]
[1751156537192,8.93789806,2438.9,2438.8,6.8398]
[1751156537784,8.93789806,2438.9,2438.8,0.2048]
[1751156537992,8.93789806,2438.9,2438.8,6.8378]
[1751156538187,0.8299,2438.9,2438.8,6.8378]
[1751156538381,8.93789806,2438.9,2438.8,6.8378]
[1751156541269,0.2048,2439.3,2438.8,6.8378]
[1751156541566,0.2048,2439.3,2439.0,2.86991763]
[1751156541567,0.8037,2439.3,2439.0,2.86991763]
[1751156541769,0.8037,2439.3,2439.1,6.8548]
[1751156541972,0.8037,2439.3,2439.1,9.72466848]
[1751156542489,0.8037,2439.1,2438.9,2.239]
[1751156542695,0.8037,2439.1,2439.0,6.65]
[1751156542895,0.8037,2439.1,2439.0,6.8548]
[1751156543401,0.8037,2439.1,2439.0,9.7248287]
[1751156543561,0.8037,2439.1,2439.0,3.0748287]
[1751156543758,0.8037,2439.1,2439.0,6.8548]
[1751156543984,8.91169806,2439.1,2439.0,6.8548]
[1751156544186,8.91169806,2439.1,2439.0,6.8538]
[1751156544413,8.91169806,2439.1,2439.0,6.649]
[1751156545420,0.8037,2439.1,2439.0,9.7238287]
[1751156545911,0.8037,2439.1,2439.0,6.8538]
[1751156546211,0.8037,2439.1,2439.0,0.2048]
[1751156546623,0.8037,2439.1,2439.0,6.8528]
[1751156547078,3.67361613,2439.1,2439.0,6.648]
[1751156547281,11.78161419,2439.1,2439.0,6.648]
[1751156547527,8.91169806,2439.1,2439.0,6.648]
[1751156547736,8.91169806,2439.1,2439.0,6.651]
[1751156552002,8.91169806,2439.1,2439.0,9.5210287]
[1751156552246,8.91169806,2439.1,2439.0,6.8558]
[1751156552615,8.91169806,2439.1,2439.0,9.7258287]
[1751156553251,8.91169806,2439.1,2439.0,6.8558]
[1751156554436,8.91169806,2439.1,2439.0,9.7258287]
[1751156554730,8.91169806,2439.1,2439.0,6.8558]
[1751156555439,8.91169806,2439.1,2439.0,9.7258287]
[1751156555935,8.91169806,2439.1,2439.0,6.8558]
[1751156556236,8.91169806,2439.1,2439.0,9.7258287]
[1751156556840,8.91169806,2439.1,2439.0,6.8558]
[1751156558048,0.7664,2439.0,2438.8,0.2048]
[1751156558211,0.7664,2439.0,2438.9,6.643]
[1751156558542,8.87439806,2439.0,2438.9,6.643]
[1751156558906,0.7664,2438.9,2438.8,0.2048]
[1751156559110,0.7664,2438.9,2438.7,0.2048]
[1751156559519,0.2048,2439.2,2438.4,1.87163183]
[1751156559520,0.7664,2438.8,2438.4,0.16363183]
[1751156559737,3.63694957,2438.6,2438.5,0.2048]
[1751156559940,3.63694957,2438.6,2438.4,0.16363183]
[1751156560112,11.74494763,2438.6,2438.4,0.16363183]
[1751156560317,2.87061718,2438.5,2438.4,0.16363183]
[1751156560719,3.63701718,2438.5,2438.4,0.16363183]
[1751156560932,2.8707403,2438.4,2438.1,1.708]
[1751156561248,3.63706629,2438.5,2438.2,0.2048]
[1751156562220,0.7664,2438.5,2438.2,0.2048]
[1751156562424,8.10799806,2438.3,2438.2,0.2048]
[1751156568766,8.10799806,2438.3,2438.2,3.07577038]
[1751156568963,8.10799806,2438.3,2438.2,4.33475413]
[1751156570228,8.10799806,2438.6,2438.3,0.55]
[1751156570434,8.10799806,2438.6,2438.5,2.87061718]
[1751156570632,8.10799806,2438.6,2438.5,3.07541718]
[1751156574378,8.10799806,2438.6,2438.5,0.2048]
[1751156574665,8.10799806,2438.6,2438.5,6.8458]
[1751156574862,8.90879806,2438.6,2438.5,6.8458]
[1751156575480,8.90879806,2438.6,2438.5,0.2048]
[1751156575653,8.90879806,2438.6,2438.4,6.641]
[1751156575970,8.10799806,2438.5,2438.4,6.641]
[1751156578169,0.8008,2438.6,2438.4,9.5117349]
[1751156578473,8.10799806,2438.5,2438.4,6.641]
[1751156583065,8.10799806,2438.5,2438.3,0.2048]
[1751156583267,8.10799806,2438.5,2438.4,6.636]
[1751156583435,8.10799806,2438.5,2438.3,9.71161236]
[1751156583937,8.10799806,2438.5,2438.3,6.8408]
[1751156584149,10.97862104,2438.5,2438.3,0.2048]
[1751156584347,2.8707349,2438.4,2438.3,0.2048]
[1751156584636,0.7992,2438.3,2438.1,6.8398]
[1751156584839,8.10799806,2438.2,2438.1,6.8398]
[1751156586665,8.10799806,2438.2,2438.1,9.71088814]
[1751156588796,8.10799806,2438.2,2438.1,6.8398]
[1751156590308,8.10799806,2438.2,2438.1,9.71088814]
[1751156598633,8.10799806,2438.2,2438.1,6.8358]
[1751156598786,8.92499806,2438.2,2438.1,6.8358]
[1751156599737,8.92499806,2438.2,2438.1,6.631]
[1751156599889,8.92499806,2438.2,2438.1,6.63]
[1751156600323,8.92499806,2438.2,2437.9,0.2048]
[1751156600669,0.817,2438.2,2438.0,6.631]
[1751156601657,8.10799806,2438.1,2438.0,6.631]
[1751156601874,8.10799806,2438.1,2438.0,9.5022059]
[1751156602272,8.10799806,2438.1,2438.0,6.631]
[1751156602870,8.10799806,2438.1,2437.9,3.07606949]
[1751156603167,8.10799806,2438.1,2438.0,6.63]
[1751156605562,0.2048,2438.4,2438.0,7.4008]
[1751156605767,8.10799806,2438.2,2438.0,9.50114599]
[1751156606653,8.93319806,2438.2,2438.0,6.63]
[1751156607047,8.93319806,2438.2,2437.9,0.2048]
[1751156607249,8.10799806,2438.0,2437.7,2.87154564]
[1751156607456,1.03,2438.2,2437.8,3.07623267]
[1751156608570,8.10799806,2437.9,2437.8,3.07623267]
[1751156611868,8.10799806,2437.9,2437.8,0.2048]
[1751156612067,8.10799806,2437.9,2437.8,6.8308]
[1751156615332,8.10799806,2437.9,2437.8,9.70224146]
[1751156616850,8.10799806,2438.2,2438.1,2.87097657]
[1751156617160,8.10799806,2438.2,2438.1,9.69977657]
[1751156617956,8.10799806,2438.5,2438.3,2.87078175]
[1751156618239,8.10799806,2438.5,2438.4,7.42]
[1751156618457,8.10799806,2438.5,2438.4,10.2907349]
[1751156619453,8.10799806,2438.5,2438.4,6.626]
[1751156621791,8.10799806,2438.5,2438.4,9.4967349]
[1751156623876,8.10799806,2438.5,2438.4,6.626]
[1751156627473,8.10799806,2438.5,2438.4,9.4967349]
[1751156627978,8.10799806,2438.5,2438.4,6.626]
[1751156628188,8.10799806,2438.5,2438.4,9.4967349]
[1751156628482,8.10799806,2438.5,2438.4,6.626]
[1751156628686,8.10799806,2438.5,2438.4,9.4967349]
[1751156631468,8.10799806,2438.5,2438.4,10.3247349]
[1751156631873,8.10799806,2438.5,2438.4,10.5295349]
[1751156635886,8.90359806,2438.6,2438.4,0.2048]
[1751156636181,8.90359806,2438.6,2438.4,6.621]
[1751156636404,11.77410185,2438.6,2438.4,6.621]
[1751156636549,8.90359806,2438.6,2437.9,0.8239]
[1751156636755,8.10799806,2438.0,2437.8,4.56738347]
[1751156636957,8.10799806,2438.0,2437.9,6.622]
[1751156637155,8.10799806,2438.0,2437.9,9.69812368]
[1751156639605,8.10799806,2438.0,2437.9,0.2048]
[1751156639758,8.10799806,2438.0,2437.9,6.8268]
[1751156642397,8.10799806,2438.0,2437.9,9.69812368]
[1751156643459,8.10799806,2438.0,2437.9,11.12467979]
[1751156643790,0.2048,2438.4,2437.9,11.12467979]
[1751156643791,8.10799806,2438.2,2438.1,2.87108814]
[1751156643957,8.10799806,2438.2,2438.1,9.49108814]
[1751156645703,8.10799806,2438.2,2438.1,6.62]
[1751156646905,8.10799806,2438.2,2438.1,9.49108814]
[1751156648204,8.10799806,2438.3,2438.2,2.87090797]
[1751156651105,8.10799806,2438.3,2438.2,3.42090797]
[1751156651303,8.10799806,2438.3,2438.2,4.80815745]
[1751156653411,8.10799806,2438.3,2438.2,3.42090797]
[1751156654314,3.07508083,2438.8,2438.3,2.87079959]
[1751156654616,10.0,2438.7,2438.4,6.8238]
[1751156655020,10.2048,2438.8,2438.4,9.69452914]
[1751156655424,0.2048,2438.8,2438.5,2.87061481]
[1751156655586,8.10799806,2438.6,2438.5,2.87061481]
[1751156656722,0.2048,2438.8,2438.4,10.47933322]
[1751156656927,0.2048,2438.8,2438.5,4.20551976]
[1751156656928,8.10799806,2438.6,2438.5,4.20551976]
[1751156657250,8.10799806,2438.6,2438.5,10.82451976]
[1751156658099,8.10799806,2438.8,2438.7,3.42038176]
[1751156658296,8.10799806,2438.8,2438.6,0.2048]
[1751156658501,2.87021028,2438.9,2438.6,0.2048]
[1751156658502,8.91499806,2438.7,2438.6,6.8238]
[1751156661492,11.78537982,2438.7,2438.5,6.618]
[1751156661810,8.10799806,2438.6,2438.5,6.618]
[1751156662200,8.10799806,2438.6,2438.4,0.2048]
[1751156662499,8.10799806,2438.6,2438.5,6.619]
[1751156663404,8.10799806,2438.6,2438.4,6.618]
[1751156663730,10.97857417,2438.6,2438.3,0.2048]
[1751156663884,8.10799806,2438.4,2438.3,6.8238]
[1751156665831,8.10799806,2438.4,2438.3,0.2048]
[1751156666129,8.10799806,2438.4,2438.3,6.8228]
[1751156666335,8.10799806,2438.4,2438.3,0.2048]
[1751156666504,8.10799806,2438.4,2438.3,6.8228]
[1751156667850,8.10799806,2438.4,2438.3,6.8218]
[1751156669146,8.10799806,2438.4,2438.3,9.69265264]
[1751156669448,8.10799806,2438.4,2438.3,10.50255264]
[1751156671149,8.10799806,2438.4,2438.3,6.8218]
[1751156671979,8.10799806,2438.4,2438.3,9.69265264]
[1751156672143,8.10799806,2438.4,2438.3,0.2048]
[1751156672328,8.10799806,2438.4,2438.3,6.8208]
[1751156675259,8.10799806,2438.4,2438.3,0.2048]
[1751156675561,8.10799806,2438.4,2438.3,6.8198]
[1751156689253,8.10799806,2438.4,2438.3,9.69065264]
[1751156689571,8.10799806,2438.4,2438.3,6.8198]
[1751156690777,8.10799806,2438.4,2438.3,7.6408]
[1751156692776,8.10799806,2438.4,2438.3,6.8198]
[1751156698396,8.10799806,2438.4,2438.3,9.69065264]
[1751156701584,8.10799806,2438.4,2438.3,6.8198]
[1751156706593,5.65233372,2438.4,2438.3,6.8198]
[1751156710293,5.65233372,2438.4,2438.3,9.69065264]
[1751156710475,5.65233372,2438.4,2438.3,6.8198]
[1751156714798,5.65233372,2438.4,2438.3,9.69065264]
[1751156714963,5.65233372,2438.4,2438.3,11.19810973]
[1751156716398,5.65233372,2438.4,2438.3,12.53430973]
[1751156720398,5.85713372,2438.8,2438.4,2.87062754]
[1751156720700,5.85713372,2438.8,2438.5,9.47552628]
[1751156720866,5.85713372,2438.8,2438.5,9.68032628]
[1751156722002,5.65233372,2438.6,2438.5,9.68032628]
[1751156722295,5.65233372,2438.6,2438.5,8.69446109]
[1751156722504,5.65233372,2438.6,2438.5,1.74426109]
[1751156722686,5.65233372,2438.6,2438.5,6.605]
[1751156723000,5.65233372,2438.6,2438.0,2.8712059]
[1751156723001,9.27688315,2438.6,2438.0,2.8712059]
[1751156723293,0.754,2438.6,2438.2,0.2048]
[1751156723486,0.754,2438.6,2438.2,3.0757678]
[1751156723661,0.754,2438.6,2438.3,6.605]